Cogmind - Beta 17 @@@ ROGUE MODE // 2026.06.24 @ 06:22:34 Player: ThatBishHoly Result: Self-destructed Performance ------------- Evolutions (2) 1000 Regions Visited (8) 1600 Robots Destroyed (35) 175 Value Destroyed (690) 690 Prototype IDs (4) 80 Alien Tech Used (0) 0 Bonus (200) 200 TOTAL SCORE: 3745 Bonus ------- Entered Garrisons 200 Cogmind --------- Core Integrity 465/550 Matter 8/300 Energy 265/265 System Corruption 0% Temperature Cool (0) Movement Treading (240) Ox1 Location -8/Garrison Parts ------- > --- POWER (1) -------- Improved Ion Engine > --- PROPULSION (4) --- Light Treads > --- UTILITY (2) ------ Large Storage Unit > --- WEAPON (4) ------- Heavy Battle Rifle Improved Grenade Launcher > --- INVENTORY (15) --- Medium Matter Pod (0) Advanced Visual Processing Unit Seismic Detector Targeting Computer Medium Armor Plating Relay Coupler [NC] (32) Tractor Beam Shock Bomb Launcher Rocket Launcher Improved Grenade Launcher Datajack Plasma Cutter Peak State ------------ > --- POWER ------------ Improved Ion Engine > --- PROPULSION ------- Light Treads > --- UTILITY ---------- Large Storage Unit Splice Drone Bay > --- WEAPON ----------- Rocket Launcher Improved Grenade Launcher Improved Grenade Launcher Improved Grenade Launcher > --- INVENTORY -------- Medium Matter Pod Advanced Visual Processing Unit Seismic Detector Targeting Computer Medium Armor Plating Relay Coupler [NC] Tractor Beam Heavy Battle Rifle Shock Bomb Launcher Datajack Plasma Cutter [Rating: 24] Favorites ----------- Power Improved Ion Engine Engine Improved Ion Engine Propulsion Light Treads Treads Light Treads Utility Large Storage Unit Device Splice Drone Bay Storage Large Storage Unit Weapon Improved Grenade Launcher Ballistic Gun Light Assault Rifle Launcher Improved Grenade Launcher Build | -11 -10 -10 -9 -9 -9 -8 -8 -8 ------- Run | Yrd Mat Min Mat Min Exi Min Mat Gar Slots Evolved 4 | . . . 2 . . . 2 . Power . | . . . . . . . . . Propulsion 2 | . . . 2 . . . . . Utility . | . . . . . . . . . Weapon 2 | . . . . . . . 2 . Parts Attached 20 | 6 . 1 10 . . . 2 1 Power 2 | 1 . . 1 . . . . . Engine 2 | 1 . . 1 . . . . . Core . | . . . . . . . . . Reactor . | . . . . . . . . . Propulsion 4 | 2 . . 2 . . . . . Treads 4 | 2 . . 2 . . . . . Leg . | . . . . . . . . . Wheel . | . . . . . . . . . Hover . | . . . . . . . . . Flight . | . . . . . . . . . Utility 5 | 1 . . 3 . . . . 1 Device 1 | . . . . . . . . 1 Storage 4 | 1 . . 3 . . . . . Processor . | . . . . . . . . . Hackware . | . . . . . . . . . Protection . | . . . . . . . . . Artifact . | . . . . . . . . . Weapon 9 | 2 . 1 4 . . . 2 . Energy Gun . | . . . . . . . . . Energy Cannon . | . . . . . . . . . Ballistic Gun 3 | 2 . 1 . . . . . . Ballistic Cannon . | . . . . . . . . . Launcher 6 | . . . 4 . . . 2 . Special Weapon . | . . . . . . . . . Impact Weapon . | . . . . . . . . . Slashing Weapon . | . . . . . . . . . Piercing Weapon . | . . . . . . . . . Special Melee Weapon . | . . . . . . . . . Unidentified Prototypes 1 | . . . . . . . . 1 Parts Lost 5 | . . . 3 1 . . . 1 Power . | . . . . . . . . . Propulsion 3 | . . . 1 1 . . . 1 Utility 1 | . . . 1 . . . . . Weapon 1 | . . . 1 . . . . . Highest Loss Streak 2 | . . . 2 1 . . . 1 To Critical Strikes . | . . . . . . . . . Average Backups 7 | . 2 7 8 8 9 10 9 10 Power . | . . . . . . . . . Propulsion . | . . 1 . . . . . . Utility 4 | . 2 3 3 4 5 5 6 6 Weapon 1 | . . . 3 3 3 3 2 2 Tool/Special . | . . . . . . . . . Unused Backups 10 | 2 . . 1 . . . . 7 Power . | . . . . . . . . . Propulsion 2 | 2 . . . . . . . . Utility 5 | . . . . . . . . 5 Weapon 1 | . . . 1 . . . . . Tool/Special 2 | . . . . . . . . 2 Average Slot Usage (%) 82 | . 85 85 96 80 77 77 78 73 Engine 11 | . 14 14 11 11 11 11 9 9 Treads 25 | . 28 28 43 25 22 22 18 10 Device 1 | . . . . . . . . 5 Storage 17 | . 14 14 20 22 22 22 18 11 Ballistic Gun 7 | . 28 28 3 . . . . . Launcher 19 | . . . 18 22 22 22 33 35 Peak Build Rating 24 | 6 6 9 15 15 14 14 19 24 Average Rating 12 | 5 6 7 13 14 14 14 18 21 On Entrance 10 | . 6 6 9 14 14 14 14 19 Avg Prop Armor Cover (%) 7 | . . . . . . . 7 7 Naked Turns . | . . . . . . . . . Heaviest Build 57 | 12 12 15 43 41 41 41 51 57 Greatest Support 80 | 40 40 40 80 60 40 40 40 20 Greatest Overweight (x) 2 | . . . . 1 1 1 2 2 Average Overweight (x) . | . . . . . 1 1 1 2 Largest Inventory Capacity 15 | 8 8 8 15 15 15 15 15 15 Average Capacity 12 | 7 8 8 12 15 15 15 15 15 Most Carried 12 | 5 3 8 9 9 9 11 11 12 Average Carried 7 | . 2 7 8 8 9 10 9 10 Final Capacity 15 | 8 8 8 15 15 15 15 15 15 Final Carried 12 | 2 3 8 8 9 9 11 10 12 Class Distribution -------------------- 78% | Mutant 21% | Bomber Dominant Class ---------------- Mutant | -10/Materials Mutant | -10/Mines Mutant | -9/Materials Mutant | -9/Mines Mutant | -9/Exiles Mutant | -8/Mines Bomber | -8/Materials Bomber | -8/Garrison Resources | -11 -10 -10 -9 -9 -9 -8 -8 -8 ----------- Run | Yrd Mat Min Mat Min Exi Min Mat Gar Matter Collected 540 | 304 . 144 2 90 . . . . Remotely . | . . . . . . . . . Salvage Created 469 | 171 . 100 153 34 . . . 11 Parts 55 | 13 . 7 18 16 . . . 1 Haulers Intercepted . | . . . . . . . . . Recyclers Shooed 1 | . . . 1 . . . . . Parts Field Recycled . | . . . . . . . . . Retrieved Matter . | . . . . . . . . . Parts Self-Destructed . | . . . . . . . . . Prevented . | . . . . . . . . . Parts Restored . | . . . . . . . . . Kills | -11 -10 -10 -9 -9 -9 -8 -8 -8 ------- Run | Yrd Mat Min Mat Min Exi Min Mat Gar Combat Hostiles Destroyed 24 | . . 3 10 8 . . . 3 Guns 3 | . . 3 . . . . . . AOE 21 | . . . 10 8 . . . 3 Classes Destroyed 6 | 3 . 1 2 . . . . . Worker 1 | 1 . . . . . . . . Builder 3 | . . . 3 . . . . . Tunneler 5 | 5 . . . . . . . . Recycler 2 | 1 . 1 . . . . . . Swarmer 18 | . . 3 4 8 . . . 3 Grunt 6 | . . . 6 . . . . . Best Kill Streak 9 | 2 . 3 9 4 . . . 3 Combat Bots Only 6 | . . 3 6 4 . . . 3 Max Kills in Single Turn 6 | 1 . 1 6 4 . . . 2 Gunslinging . | . . . . . . . . . Exploded 4 | . . . 4 4 . . . 2 Melee . | . . . . . . . . . Uniques/NPCs Destroyed . | . . . . . . . . . Combat | -11 -10 -10 -9 -9 -9 -8 -8 -8 -------- Run | Yrd Mat Min Mat Min Exi Min Mat Gar Hostile Shots Fired 76 | . 1 14 12 7 . . . 42 Missed 21 | . . 4 2 2 . . . 13 Hits 55 | . 1 10 10 5 . . . 29 Melee 6 | . . . . . . . . 6 Projectile 49 | . 1 10 10 5 . . . 23 Critical Strikes 4 | . . . . . . . . 4 Damage Taken 1200 | . 11 72 564 117 24 . . 412 Core 136 | . . 14 30 7 . . . 85 Absorbed by Shields . | . . . . . . . . . Regen/Repaired (Parts) 67 | . . . . . . . 67 . Core Remaining (%) 94 | 100 . 94 . . . 90 . . Volleys Fired 55 | 38 1 5 7 2 . . . 2 Largest 4 | 2 2 2 2 2 . . . 4 Hottest 141 | 40 40 53 72 72 . . . 141 Shots Fired 112 | 76 2 10 11 4 1 . . 8 Gun 88 | 76 2 10 . . . . . . Cannon . | . . . . . . . . . Launcher 24 | . . . 11 4 1 . . 8 Special . | . . . . . . . . . Kinetic 88 | 76 2 10 . . . . . . Thermal . | . . . . . . . . . Explosive 24 | . . . 11 4 1 . . 8 Electromagnetic . | . . . . . . . . . Robot Hit Streak 11 | 11 . 4 7 1 . . . 1 Robot Miss Streak 5 | 5 2 3 1 . . . . 1 Penetration Max . | . . . . . . . . . Secondary Targets . | . . . . . . . . . Shots Hit Robots 58 | 47 . 5 4 1 . . . 1 Core Hits 49 | 16 . 4 17 8 . . . 4 Critical Kills 1 | . . 1 . . . . . . Critical Parts Destroyed . | . . . . . . . . . Critical Strikes 1 | . . 1 . . . . . . Destroy 1 | . . 1 . . . . . . Melee Attacks . | . . . . . . . . . Impact . | . . . . . . . . . Slashing . | . . . . . . . . . Piercing . | . . . . . . . . . Sneak Attacks . | . . . . . . . . . Combat Hostiles . | . . . . . . . . . Follow-up Attacks . | . . . . . . . . . Damage Inflicted 2475 | 399 . 110 1279 461 . . 1 225 Guns 509 | 399 . 110 . . . . . . Cannons . | . . . . . . . . . Explosions 1952 | . . . 1279 461 . . . 212 Melee . | . . . . . . . . . Ramming 14 | . . . . . . . 1 13 Kinetic 509 | 399 . 110 . . . . . . Thermal 311 | . . . 311 . . . . . Explosive 1641 | . . . 968 461 . . . 212 Electromagnetic . | . . . . . . . . . Impact . | . . . . . . . . . Slashing . | . . . . . . . . . Piercing . | . . . . . . . . . Highest Corruption 3 | . . . 3 3 3 3 . . Average Corruption 3 | . . . 3 3 3 3 . . Corruption Purged . | . . . . . . . . . Corruption Blocked . | . . . . . . . . . Effects 18 | . . . . 10 3 5 . . Message Errors 4 | . . . . 1 . 3 . . Matter Fused 5 | . . . . 4 1 . . . Heat Flow Errors 2 | . . . . 1 . 1 . . Energy Discharges 3 | . . . . 2 . 1 . . Data Loss (minor) 2 | . . . . 2 . . . . Misfires 1 | . . . . . 1 . . . Alerts 1 | . . . . . 1 . . . Overload Shots . | . . . . . . . . . Overflow Damage 132 | . . . 115 14 . . . 3 Projectiles . | . . . . . . . . . Explosions 132 | . . . 115 14 . . . 3 Melee . | . . . . . . . . . Knockbacks . | . . . . . . . . . Impact . | . . . . . . . . . Kinetic . | . . . . . . . . . Secondary . | . . . . . . . . . Self-Inflicted Damage 364 | . . . 147 79 24 . . 114 Shots 11 | . . . 3 3 1 . . 4 Rammed 7 | . . . . . . . 1 6 Targets Rammed 8 | . . 1 . . . . 1 6 Kicked . | . . . . . . . . . Crushed 1 | . . 1 . . . . . . Highest Temperature 208 | . . 24 18 208 . 205 . 107 Average Temperature 48 | . . 11 7 74 . 110 . 55 Received Heat Transfer 66 | . 6 . 51 . . . . 9 Siege Activations . | . . . . . . . . . Martial Activations . | . . . . . . . . . Shielding Activations . | . . . . . . . . . Robots Disrupted . | . . . . . . . . . Combat Hostiles . | . . . . . . . . . Robots Corrupted . | . . . . . . . . . Combat Hostiles . | . . . . . . . . . Parts Fried . | . . . . . . . . . Impact Corruptions . | . . . . . . . . . Robots Melted . | . . . . . . . . . Combat Hostiles . | . . . . . . . . . Parts Melted . | . . . . . . . . . Heat Transferred 200 | . . . 200 . . . . . Parts Sabotaged . | . . . . . . . . . Parts Stolen . | . . . . . . . . . Parts Stripped . | . . . . . . . . . Power Chain Reactions . | . . . . . . . . . Alert | -11 -10 -10 -9 -9 -9 -8 -8 -8 ------- Run | Yrd Mat Min Mat Min Exi Min Mat Gar Maximum Alert Level 1 | . . . 1 1 . . . . Low Security (%) 92 | 100 100 100 92 62 . 100 100 100 Level 1 7 | . . . 7 37 . . . . Level 2 . | . . . . . . . . . Level 3 . | . . . . . . . . . Level 4 . | . . . . . . . . . Level 5 . | . . . . . . . . . High Security . | . . . . . . . . . Max Security . | . . . . . . . . . Peak Influence 330 | 5 10 60 330 249 . . . 143 Initial 121 | . . . 3 121 . . . . Average 54 | . 1 9 41 186 . . . 112 Influence Increases 879 | 35 10 75 383 208 . . . 168 Destroy 0b10 Robot/C 480 | . . 60 200 160 . . . 60 Destroy 0b10 Robot/NC 55 | 35 . 5 15 . . . . . Destroy Leader 50 | . . 10 20 20 . . . . Successful Hack 15 | . 10 . 5 . . . . . Disable Machine 45 | . . . 45 . . . . . Anti-Garrison Action 50 | . . . . . . . . 50 Destroy Structure 169 | . . . 98 28 . . . 43 Lose Combat Pursuer 15 | . . . . . . . . 15 Influence Decreases 781 | 35 10 65 81 407 113 . . 70 Entered New Map 311 | . . . 7 191 113 . . . Time Decay 360 | 35 10 65 44 206 . . . . Lost Part 50 | . . . 30 10 . . . 10 Lost Ally 60 | . . . . . . . . 60 Squads Dispatched 1 | . 1 . . . . . . . Investigation . | . . . . . . . . . Extermination . | . . . . . . . . . Reinforcement 1 | . 1 . . . . . . . Assault . | . . . . . . . . . Garrison . | . . . . . . . . . Intercept . | . . . . . . . . . Searches Triggered . | . . . . . . . . . Construction Impeded . | . . . . . . . . . Haulers Reinforced . | . . . . . . . . . Active Scanning Responses . | . . . . . . . . . Cargo Convoy Interrupts . | . . . . . . . . . Stealth | -11 -10 -10 -9 -9 -9 -8 -8 -8 --------- Run | Yrd Mat Min Mat Min Exi Min Mat Gar Distress Signals 2 | . . . 2 . . . . . Communications Jammed . | . . . . . . . . . Distress Signals . | . . . . . . . . . Times Spotted 31 | . 2 5 12 4 . . 1 7 Peak Tracking Total 8 | . 1 3 5 4 . . 1 8 Tactical Retreats 1 | . . . . . . . . 1 Traps | -11 -10 -10 -9 -9 -9 -8 -8 -8 ------- Run | Yrd Mat Min Mat Min Exi Min Mat Gar Traps Triggered . | . . . . . . . . . Indirectly . | . . . . . . . . . Trap Hack Attempts . | . . . . . . . . . Triggered . | . . . . . . . . . Disarmed . | . . . . . . . . . Reprogrammed . | . . . . . . . . . Reused . | . . . . . . . . . Traps Extracted . | . . . . . . . . . Installed . | . . . . . . . . . Triggered . | . . . . . . . . . Machines | -11 -10 -10 -9 -9 -9 -8 -8 -8 ---------- Run | Yrd Mat Min Mat Min Exi Min Mat Gar Machines Disabled 4 | . . . 3 . . . . 1 Max in Single Turn 2 | . . . 2 . . . . 1 Garrison Relay 1 | . . . . . . . . 1 Machines Repaired . | . . . . . . . . . Machines Dismantled . | . . . . . . . . . Machines Sabotaged . | . . . . . . . . . Overloaded Fab Kills . | . . . . . . . . . Hacking | -11 -10 -10 -9 -9 -9 -8 -8 -8 --------- Run | Yrd Mat Min Mat Min Exi Min Mat Gar Machines Accessed 6 | . 1 . 2 1 . . 2 . Terminals 2 | . 1 . 1 . . . . . Fabricators . | . . . . . . . . . Repair Stations 1 | . . . . . . . 1 . Recycling Units 1 | . . . 1 . . . . . Scanalyzers . | . . . . . . . . . Garrison Access 1 | . . . . . . . 1 . Total Hacks 14 | . 2 . 5 1 . . 6 . Successful 10 | . 2 . 3 1 . . 4 . Failed 4 | . . . 2 . . . 2 . Catastrophic . | . . . . . . . . . Database Lockouts . | . . . . . . . . . Manual 6 | . 2 . 3 . . . 1 . Terminals 4 | . 2 . 2 . . . . . Fabricators . | . . . . . . . . . Repair Stations 4 | . . . . . . . 4 . Recycling Units 3 | . . . 3 . . . . . Scanalyzers . | . . . . . . . . . Garrison Access 2 | . . . . . . . 2 . Terminal Hacks 3 | . 1 . 1 1 . . . . Prototype ID Bank 2 | . 1 . 1 . . . . . Open Door 1 | . . . . 1 . . . . Fabricator Hacks . | . . . . . . . . . Repair Station Hacks 3 | . . . . . . . 3 . Scan Component 2 | . . . . . . . 2 . Repair 1 | . . . . . . . 1 . Recycling Unit Hacks . | . . . . . . . . . Scanalyzer . | . . . . . . . . . Garrison Access Hacks 1 | . . . . . . . 1 . Unlock Access 1 | . . . . . . . 1 . Unauthorized Hacks 1 | . 1 . . . . . . . Terminals 1 | . 1 . . . . . . . Botnet 1 | . 1 . . . . . . . Fabricators . | . . . . . . . . . Repair Stations . | . . . . . . . . . Recycling Units . | . . . . . . . . . Scanalyzers . | . . . . . . . . . Garrison Access . | . . . . . . . . . Data Cores Recovered . | . . . . . . . . . Used . | . . . . . . . . . Hacking Detections 5 | . 1 . 2 . . . 2 . Full Trace Events . | . . . . . . . . . Feedback Events . | . . . . . . . . . Feedback Blocked . | . . . . . . . . . Robot Schematics Acquired . | . . . . . . . . . Robots Built . | . . . . . . . . . Authchips . | . . . . . . . . . Time . | . . . . . . . . . Total Robot Build Rating . | . . . . . . . . . Part Schematics Acquired . | . . . . . . . . . Parts Built . | . . . . . . . . . Authchips . | . . . . . . . . . Time . | . . . . . . . . . Total Part Build Rating . | . . . . . . . . . Part Studies Acquired . | . . . . . . . . . Parts Repaired 1 | . . . . . . . 1 . Time 38 | . . . . . . . 38 . Parts Recycled . | . . . . . . . . . Recycled Matter . | . . . . . . . . . Retrieved Matter . | . . . . . . . . . Retrieved Components . | . . . . . . . . . Parts Scanalyzed . | . . . . . . . . . Part Schematics Acquired . | . . . . . . . . . Parts Damaged . | . . . . . . . . . Bothacking | -11 -10 -10 -9 -9 -9 -8 -8 -8 ------------ Run | Yrd Mat Min Mat Min Exi Min Mat Gar Used RIF Installer . | . . . . . . . . . Robots Hacked . | . . . . . . . . . Non-combat . | . . . . . . . . . Combat . | . . . . . . . . . Robot Hacks Applied . | . . . . . . . . . Relay Couplers Released 5 | . . . . . . . . 5 Machine Destruction 5 | . . . . . . . . 5 Fabnet Peak Effective % . | . . . . . . . . . Robots Rewired . | . . . . . . . . . Allies Hacked . | . . . . . . . . . Hacks Repelled . | . . . . . . . . . Allies | -11 -10 -10 -9 -9 -9 -8 -8 -8 -------- Run | Yrd Mat Min Mat Min Exi Min Mat Gar Total Allies . | . . . . . . . . . Largest Group . | . . . . . . . . . Highest-Rated Group . | . . . . . . . . . Highest-Rated Ally . | . . . . . . . . . Total Orders . | . . . . . . . . . Ally Attacks 4 | . . . . . . . . 4 Total Damage 8 | . . . . . . . . 8 Kills . | . . . . . . . . . Allies Corrupted 2 | . . . . . . . . 2 Allies Melted . | . . . . . . . . . Intel | -11 -10 -10 -9 -9 -9 -8 -8 -8 ------- Run | Yrd Mat Min Mat Min Exi Min Mat Gar Active Infowar (turns) . | . . . . . . . . . Robot Analysis Total . | . . . . . . . . . Derelict Logs Recovered 3 | . . 3 . . . . . . Drone Launches 6 | . . . . . . . . 6 Drone Recoveries 3 | . . . . . . . . 3 Exploration | -11 -10 -10 -9 -9 -9 -8 -8 -8 ------------- Run | Yrd Mat Min Mat Min Exi Min Mat Gar Turns Passed 2815 | 459 90 495 432 424 113 192 211 399 Spaces Moved 1321 | 225 55 296 245 203 48 79 56 114 Core 14 | 14 . . . . . . . . Treads 1307 | 211 55 296 245 203 48 79 56 114 Legs . | . . . . . . . . . Wheels . | . . . . . . . . . Hover . | . . . . . . . . . Flight . | . . . . . . . . . Fastest Speed 50 | 50 160 160 160 160 240 240 240 320 Average Speed 192 | 153 160 160 160 206 240 240 285 320 Slowest Speed 320 | 160 160 160 160 240 240 240 320 320 Overloaded Moves . | . . . . . . . . . Propulsion Burnouts . | . . . . . . . . . Robots Hopped . | . . . . . . . . . Potential Cave-ins 3 | . . . 3 . . . . . Cave-ins Triggered 1 | . . . 1 . . . . . Exploration Rate (%) 24 | 7 13 60 23 56 8 17 11 21 Regions Visited 8 Branch Regions 4 Pre-discovered Areas 1 | . . 1 . . . . . . Known Exits Taken 2 | . . . . . . 1 1 . Unknown Exits Taken 6 | 1 1 1 1 1 1 . . . Scrap Searched 1 | . . 1 . . . . . . Spaces Dug . | . . . . . . . . . Terrain Destroyed 254 | . . . 124 45 12 . . 73 Melee . | . . . . . . . . . Projectile . | . . . . . . . . . AOE 254 | . . . 124 45 12 . . 73 Terrain Rammed . | . . . . . . . . . Walls Destroyed . | . . . . . . . . . Machines Disabled . | . . . . . . . . . Actions | -11 -10 -10 -9 -9 -9 -8 -8 -8 --------- Run | Yrd Mat Min Mat Min Exi Min Mat Gar Total 1486 | 279 56 308 274 205 47 82 104 131 Wait 42 | . . . . . . . 42 . Move 1313 | 224 54 295 243 202 47 78 56 114 Hop . | . . . . . . . . . Pick Up 31 | 9 1 5 8 1 . 2 2 3 Fast Attach 1 | 1 . . . . . . . . Attach 16 | 5 . . 5 . . . 3 3 Detach 2 | . . . . . . . . 2 Swap 7 | . . 1 6 . . . . . Drop 7 | 2 . 1 4 . . . . . Fire 55 | 38 1 5 7 2 . . . 2 Melee . | . . . . . . . . . Ram . | . . . . . . . . . Kick . | . . . . . . . . . Crush 8 | . . 1 . . . . 1 6 Escape Stasis 2 | . . . 1 . . . . 1 Rewire 2 | . . . . . . 2 . . Trap . | . . . . . . . . . Miscellaneous . | . . . . . . . . . Route ------- -11/Scrapyard -10/Materials -10/Mines -9/Materials (discovered 2 exits: Mat / *Min) -9/Mines (discovered 2 exits: *Mat / [*Exi]) -9/Exiles -8/Mines -8/Materials -8/Garrison History --------- Turn | Location | Event 23 | -11/Scrapyard | Discovered new exit (range 15) 460 | -11/Scrapyard | Entered Materials 461 | -10/Materials | Build established: Mutant 506 | -10/Materials | Discovered new exit (range 6) 550 | -10/Materials | Entered Mines 555 | -10/Mines | Joined a pair of Derelicts in attacking an 0b10 outpost 807 | -10/Mines | A weapon hastily lodged in a ceiling crevice suddenly fell to the ground 898 | -10/Mines | Learned Materials emergency access door positions 984 | -10/Mines | Learned 4 Materials zone layouts 1032 | -10/Mines | Discovered new exit (range 8) 1045 | -10/Mines | Entered Materials 1045 | -9/Materials | Evolved 2 slots: Propulsion x2 1046 | -9/Materials | Identified exit to Materials 1416 | -9/Materials | Crushed by falling debris 1465 | -9/Materials | Discovered new exit (range 8) 1477 | -9/Materials | Entered Mines 1517 | -9/Mines | Found the Drone Emporium 1527 | -9/Mines | Found Prototype Device 1844 | -9/Mines | Discovered exit to Materials (range 6) 1889 | -9/Mines | Deemed a non-threat by the Exiles lab entrance 1892 | -9/Mines | Discovered new exit (range 5) 1901 | -9/Mines | Entered Exiles 1959 | -9/Exiles | Discovered new exit (range 15) 2014 | -9/Exiles | Entered Mines 2182 | -8/Mines | Discovered exit to Materials (range 6) 2206 | -8/Mines | Entered Materials 2206 | -8/Materials | Evolved 2 slots: Weapon x2 2305 | -8/Materials | Repaired Imp. Grenade Launcher 2417 | -8/Materials | Identified exit to Garrison 2417 | -8/Materials | Entered Garrison 2467 | -8/Garrison | Triggered checkpoint 2494 | -8/Garrison | Garrison Relay disabled 2499 | -8/Garrison | Build established: Bomber 2539 | -8/Garrison | Identified Splice Drone Bay 2816 | -8/Garrison | Self-destructed Last Messages --------------- 02795_ Splice Drone knocked back. 02795_ Splice Drone system corrupted by crushing effect. 02795_ Splice Drone knocked back. 02795_ C-17 Slicer knocked back. 02795_ Splice Drone injecting C-17 Slicer... Initiated overload sequence, T-6 to critical power. 02796_ Splice Drone system terminally corrupted. 02796_ S-10 Pest destroyed. 02796_ Splice Drone injecting S-10 Pest... Deactivating 1 weapon system. 02798_ Splice Drone retrieved by Splice Drone Bay (repair cost: 9). 02799_ Splice Drone retrieved by Splice Drone Bay (repair cost: 4). 02800_ Splice Drone retrieved by Splice Drone Bay (repair cost: 2). 02801_ C-17 Slicer Lgt. Nuclear Core critical detonation. 02801_ Splice Drone destroyed. 02804_ Imp. Grenade Launcher severed. 02804_ Splice Drone Bay severed. 02804_ Acquired Imp. Grenade Launcher. 02810_ Slammed into C-17 Slicer. 02814_ Imp. Grenade Launcher severed. Map ----- +----------------------------------------------------+ | ????????????????????????????## ##########????????? | | ????????????????????????????# # #"""""#????????? | | ?????????????????????######## # "#????????? | | ?????????????????????# # # ### ! #????????? | | ??????????????######## ## ## # # !#????????? | | ??????????????# #"#????????? | | ??????????????## ######+ ## ## ###????????? | | ??????????????#"""""#???# # # #### # #?????????? | | ??????????????#######???# ## # #########?????????? | | ????????????????????????# ## # ## #?????????? | | ????????????????????????# ### ## #?????????? | | ????????????????????????# # #?????????? | | ????????????????????????#### #?????????? | | ???????????????????????????# ##### ###?????????? | | ???????????????????????????# # # ##???????????? | | ???????????????????????????# ## #???????????? | | ???????????????????????????# ### ####???????????? | | ?????????????????###???????# #??##??????????????? | | ?????????????????# ???????# #??????????????????? | | ?????????????????# #???????# #??????????????????? | | ?????????????????# #???????# #??????????????????? | | ?????????????????# #???????# #??????????????????? | | ###########""""### ##??????# #??????????????????? | | s;;###### #??????????????????? | | % %c #??????????????????? | | g c@ #??????????????????? | | ?????# ## ##s ;;#########??????????????????? | | ?????# ## ## #????????????????????????????? | | ?????" "????????????????????????????? | | ?????" "????????????????????????????? | | ?????" "????????????????????????????? | | ?????" "????????????????????????????? | | ?????# ## ## #????????????????????????????? | | ?????# ## ## ###??????????????????????????? | | ?????# =%[ ??????????????????????? | | ?????# ??????????????????????? | | ?????# #######??????????????????????? | | ?????# ##""""######????????????????????????????? | | ?????# ????????????????????????????????????????? | | ?????# ?????????????????????????????????????????? | | ?????# ??????????????????????????????????????????? | | ?????#???????????????????????????????????????????? | | ?????????????????????????????????????????????????? | | ?????????????????????????????????????????????????? | | ?????????????????????????????????????????????????? | | ?????????????????????????????????????????????????? | | ?????????????????????????????????????????????????? | | ?????????????????????????????????????????????????? | | ?????????????????????????????????????????????????? | | ?????????????????????????????????????????????????? | +----------------------------------------------------+ Best States ------------- Heat Dissipation 31 Energy Generation 12 Energy Capacity 265 Matter Stores 330 Matter Capacity 500 Sight Range 16 Terrain Scan Density 10 Evasion (%) 50 Recoil Reduction 4 Item Schematics ----------------- None Robot Schematics ------------------ None Fabricated ------------ Nothing Repaired ---------- Imp. Grenade Launcher | 10% | -8/Materials Studied --------- None Alien Tech Used ----------------- None Achievements -------------- None Challenges ------------ None Game ------ Seed LegHeartLink Manual? 0 Play Time 00:20:52 Cumulative 90.2 hours Start 2026.06.24 @ 06:04:23 End 2026.06.24 @ 06:22:34 Sessions 1 Manual Loads 0 Difficulty Rogue Special Mode None Game No. 266 Rogue 266 Adventurer 0 Explorer 0 Win Type - Total 0 Types 0/0/0/0/0/0/0/0/0/0 Lore% 24 Gallery% 37 Achievement% 20 Wizard Run 0 Options --------- Layout 0 ASCII 0 Keyboard 0 Movement Arrows Keybinds 0 Fullscreen 1 Font 12/Smallcaps Map View 38x28 Zoom Use 100% Tactical HUD 1 Map Filters NONE Filters NONE Steam SD RUN: aa371947-2f15-405a-929b-305c7eca517e